bitfinex-derivatives/quotes_BTCF0:USTF0_20250719
["timestamp","ask_amount","ask_price","bid_price","bid_amount"]
[1752946234533,0.89344867,117980.0,117970.0,0.802313]
[1752946234734,0.89344867,117980.0,117970.0,0.801313]
[1752946235028,0.89444867,117980.0,117970.0,0.801313]
[1752946235228,0.8860729,117980.0,117970.0,0.509613]
[1752946237630,0.6687066,117980.0,117970.0,0.509613]
[1752946237834,0.8860729,117980.0,117970.0,0.3401631]
[1752946238732,0.89461609,117980.0,117970.0,0.3401631]
[1752946240528,0.2238209,117970.0,117960.0,1.83294517]
[1752946240836,1.4652072,117970.0,117960.0,1.66347037]
[1752946241133,1.4652072,117970.0,117960.0,1.83294567]
[1752946241327,1.1044072,117970.0,117960.0,1.83294567]
[1752946242831,1.4652072,117970.0,117960.0,1.66347037]
[1752946243333,1.1044072,117970.0,117960.0,1.66347037]
[1752946244122,1.16521889,117970.0,117960.0,1.66347037]
[1752946245337,1.52601889,117970.0,117960.0,1.66347037]
[1752946248934,1.30865259,117970.0,117960.0,1.66347037]
[1752946249129,1.52601889,117970.0,117960.0,1.66347037]
[1752946250230,1.16521889,117970.0,117960.0,1.66347037]
[1752946250430,1.52601889,117970.0,117960.0,1.66347037]
[1752946250833,1.4652072,117970.0,117960.0,1.66347037]
[1752946252932,1.41094599,117970.0,117960.0,1.66347037]
[1752946253637,1.47175768,117970.0,117960.0,1.66347037]
[1752946254135,1.41094599,117970.0,117960.0,1.66347037]
[1752946260643,1.05014599,117970.0,117960.0,1.66347037]
[1752946260841,0.6667209,117970.0,117960.0,1.66347037]
[1752946261045,0.8865609,117970.0,117960.0,1.82657546]
[1752946261244,1.04966599,117970.0,117960.0,1.66347037]
[1752946262445,1.41042599,117970.0,117960.0,1.83988546]
[1752946262745,1.04962599,117970.0,117960.0,1.83997546]
[1752946263145,1.04962599,117970.0,117960.0,1.83965546]
[1752946263846,1.04962599,117970.0,117960.0,1.82657546]
[1752946266145,1.05062599,117970.0,117960.0,1.82657546]
[1752946266351,1.05162599,117970.0,117960.0,1.82657546]
[1752946273555,1.11243768,117970.0,117960.0,1.82657546]
[1752946273745,1.05162599,117970.0,117960.0,1.82657546]
[1752946274255,1.11243768,117970.0,117960.0,1.82657546]
[1752946274650,1.05102599,117970.0,117960.0,1.82657546]
[1752946277358,0.8879209,117970.0,117960.0,1.99605066]
[1752946277559,1.05102599,117970.0,117960.0,1.99605066]
[1752946278759,1.05102599,117970.0,117960.0,1.66347037]
[1752946278959,1.05102599,117970.0,117960.0,1.82657546]
[1752946279460,1.05102599,117970.0,117960.0,1.66347037]
[1752946279652,1.05102599,117970.0,117960.0,1.82657546]
[1752946280653,1.05102599,117970.0,117960.0,1.99605066]
[1752946280854,1.05102599,117970.0,117960.0,1.82657546]
[1752946281562,1.05102599,117970.0,117960.0,1.99605076]
[1752946286663,1.12702262,117970.0,117960.0,1.99605076]
[1752946289564,1.12702262,117970.0,117960.0,1.82657546]
[1752946290066,1.12702262,117970.0,117960.0,1.66347037]
[1752946290268,1.11182682,117970.0,117960.0,1.82657546]
[1752946291566,1.11182682,117970.0,117960.0,1.66347037]
[1752946291770,1.11182682,117970.0,117960.0,1.82657546]
[1752946293269,1.11182682,117970.0,117960.0,1.66347037]
[1752946293470,1.11182682,117970.0,117960.0,1.82657546]
[1752946294063,1.05102599,117970.0,117960.0,1.82657546]
[1752946294768,1.41182599,117970.0,117960.0,1.82657546]
[1752946295169,1.05102599,117970.0,117960.0,1.82657546]
[1752946295358,1.41182599,117970.0,117960.0,1.82657546]
[1752946295562,1.05102599,117970.0,117960.0,1.82657546]
[1752946295758,1.41182599,117970.0,117960.0,1.82657546]
[1752946295962,1.47262682,117970.0,117960.0,1.82657546]
[1752946297872,1.47262682,117970.0,117960.0,1.66347037]
[1752946298962,1.48918039,117970.0,117960.0,1.66347037]
[1752946302162,1.12838039,117970.0,117960.0,1.66347037]
[1752946302366,1.48918039,117970.0,117960.0,1.66347037]
[1752946302564,1.12838039,117970.0,117960.0,1.66347037]
[1752946303763,1.48918039,117970.0,117960.0,1.66347037]
[1752946304669,1.3260753,117970.0,117960.0,1.66347037]
[1752946304871,1.48918039,117970.0,117960.0,1.66347037]
[1752946306362,1.12838039,117970.0,117960.0,1.66347037]
[1752946306573,1.48918039,117970.0,117960.0,1.66347037]
[1752946311873,1.3260753,117970.0,117960.0,1.66347037]
[1752946312069,1.48918039,117970.0,117960.0,1.66347037]
[1752946313380,1.3260753,117970.0,117960.0,1.66347037]
[1752946313576,1.48918039,117970.0,117960.0,1.66347037]
[1752946313874,1.65228548,117970.0,117960.0,1.66347037]
[1752946314271,1.73705638,117970.0,117960.0,1.66347037]
[1752946315880,1.73705638,117970.0,117960.0,1.60842437]
[1752946316175,1.86625555,117970.0,117960.0,1.60842437]
[1752946316381,1.86625555,117970.0,117960.0,1.60642437]
[1752946317078,1.92701637,117970.0,117960.0,1.60642437]
[1752946317383,1.86625555,117970.0,117960.0,1.60642437]
[1752946317577,1.94225218,117970.0,117960.0,1.60642437]
[1752946319784,1.58145218,117970.0,117960.0,1.60642437]
[1752946319986,2.30305218,117970.0,117960.0,1.60642437]
[1752946325185,2.30305218,117970.0,117960.0,1.5721434]
[1752946326888,2.30305218,117970.0,117960.0,1.5398524]
[1752946327277,2.30305218,117970.0,117960.0,1.475484]
[1752946327481,2.30305218,117970.0,117960.0,1.4421307]
[1752946327782,2.63570127,117970.0,117960.0,1.3032504]
[1752946327992,2.63570127,117970.0,117960.0,0.91558908]
[1752946328192,2.55970464,117970.0,117960.0,0.81507738]
[1752946328392,2.55970464,117970.0,117960.0,0.64578578]
[1752946328393,2.6190053,117970.0,117960.0,0.64578578]
[1752946329393,2.45590021,117970.0,117960.0,0.64578578]
[1752946330795,2.31689726,117970.0,117960.0,0.64578578]
[1752946331599,2.48000235,117970.0,117960.0,0.64578578]
[1752946332994,2.31689726,117970.0,117960.0,0.64578578]
[1752946333194,2.31689726,117970.0,117960.0,0.61150259]
[1752946334001,2.21050198,117970.0,117960.0,0.58392805]
[1752946334201,2.21030198,117970.0,117960.0,0.46938731]
[1752946339806,2.37340707,117970.0,117960.0,0.46938731]
[1752946340608,2.21030198,117970.0,117960.0,0.46938731]
[1752946341407,2.21030198,117970.0,117960.0,0.4554677]
[1752946343799,2.37340707,117970.0,117960.0,0.4554677]
[1752946344110,2.47963249,117970.0,117960.0,0.4554677]
[1752946344411,2.47963249,117970.0,117960.0,0.43510508]
[1752946346122,2.37340707,117970.0,117960.0,0.43510508]
[1752946346310,2.4493,117970.0,117960.0,0.43510508]
[1752946347813,2.28619491,117970.0,117960.0,0.43510508]
[1752946353719,2.21030198,117970.0,117960.0,0.43510508]
[1752946353909,2.21030198,117970.0,117960.0,0.42118551]
[1752946354114,2.3165274,117970.0,117960.0,0.42118551]
[1752946354722,2.3165274,117970.0,117960.0,0.40082317]
[1752946354923,1.5467274,117970.0,117960.0,0.42817317]
[1752946355123,1.45956043,117970.0,117960.0,0.48892317]
[1752946355324,2.02026198,117970.0,117960.0,0.48892317]
[1752946355724,2.09620462,117970.0,117960.0,0.48892317]
[1752946355929,2.09620462,117970.0,117960.0,0.50137317]
[1752946356128,2.09620462,117970.0,117960.0,0.50635317]
[1752946356823,2.01143372,117970.0,117960.0,0.50635317]
[1752946358024,1.93549108,117970.0,117960.0,0.50635317]
[1752946358220,1.19262599,117970.0,117960.0,0.50635317]
[1752946358423,1.84833647,117970.0,117960.0,0.50635317]
[1752946358623,2.01144156,117970.0,117960.0,0.50635317]
[1752946359224,1.84833647,117970.0,117960.0,0.50635317]
[1752946360227,1.48753647,117970.0,117960.0,0.50635317]
[1752946360426,1.41158599,117970.0,117960.0,0.50635317]
[1752946361317,1.47229953,117970.0,117960.0,0.50635317]
[1752946362131,1.63540462,117970.0,117960.0,0.50635317]
[1752946362435,0.50342953,117970.0,117960.0,0.50635317]
[1752946362731,1.08318953,117970.0,117960.0,0.50635317]
[1752946363430,1.44398953,117970.0,117960.0,0.50635317]
[1752946364332,1.28088444,117970.0,117960.0,0.50635317]
[1752946364532,1.44398953,117970.0,117960.0,0.50635317]
[1752946365629,1.60709462,117970.0,117960.0,0.50635317]
[1752946365931,1.60709462,117970.0,117960.0,0.45954317]
[1752946366322,1.60709462,117970.0,117960.0,0.44562488]
[1752946369833,1.85497061,117970.0,117960.0,0.38690488]
[1752946370037,1.84115198,117970.0,117960.0,0.36654415]
[1752946371238,3.01399198,117970.0,117960.0,0.36654415]
[1752946371631,3.08994246,117970.0,117960.0,0.36654415]
[1752946372437,3.01399198,117970.0,117960.0,0.36654415]
[1752946372832,3.08994246,117970.0,117960.0,0.36654415]
[1752946373133,2.76373228,117970.0,117960.0,0.36654415]
[1752946373339,3.08994246,117970.0,117960.0,0.36654415]
[1752946373639,3.01399198,117970.0,117960.0,0.36654415]
[1752946373937,3.08994246,117970.0,117960.0,0.36654415]
[1752946374140,3.01399198,117970.0,117960.0,0.36654415]
[1752946374339,3.01399198,117970.0,117960.0,0.3526253]
[1752946378542,3.37479198,117970.0,117960.0,0.3526253]
[1752946378935,2.65319198,117970.0,117960.0,0.3526253]
[1752946379137,3.37479198,117970.0,117960.0,0.3526253]
[1752946382542,3.45074246,117970.0,117960.0,0.3526253]
[1752946382944,3.37479198,117970.0,117960.0,0.3526253]
[1752946383144,3.45074246,117970.0,117960.0,0.3526253]
[1752946384349,3.4810174,117970.0,117960.0,0.3526253]
[1752946385950,3.55688386,117970.0,117960.0,0.3526253]
[1752946386349,3.45065844,117970.0,117960.0,0.3526253]
[1752946389553,3.12444826,117970.0,117960.0,0.3526253]
[1752946389753,3.45065844,117970.0,117960.0,0.3526253]
[1752946391348,3.37479198,117970.0,117960.0,0.3526253]
[1752946393657,3.4810174,117970.0,117960.0,0.3526253]
[1752946394157,3.55690988,117970.0,117960.0,0.3526253]
[1752946394358,3.45068446,117970.0,117960.0,0.3526253]
[1752946397059,2.72908446,117970.0,117960.0,0.3526253]
[1752946397260,3.45068446,117970.0,117960.0,0.3526253]
[1752946404469,3.61378955,117970.0,117960.0,0.2859753]
[1752946404667,3.53789707,117970.0,117960.0,0.2691653]
[1752946405071,3.53789707,117970.0,117960.0,0.2457655]
[1752946405262,3.53789707,117970.0,117960.0,0.2123018]
[1752946405467,3.64412249,117970.0,117960.0,0.16064843]
[1752946405665,3.64412249,117970.0,117960.0,0.13176043]
[1752946405868,3.6605542,117970.0,117960.0,0.06303511]
[1752946406975,3.64412249,117970.0,117960.0,0.06303511]
[1752946410275,3.64412249,117970.0,117960.0,0.03821821]
[1752946410578,3.64412249,117970.0,117960.0,1e-08]
[1752946411873,0.2073494,117950.0,117940.0,0.02173]
[1752946412078,2.01179192,117950.0,117940.0,0.02173]
[1752946412982,1.68558174,117950.0,117940.0,0.02173]
[1752946413384,2.01179192,117950.0,117940.0,0.02273]
[1752946414074,2.01179192,117950.0,117940.0,0.02473]
[1752946417383,2.07824177,117950.0,117940.0,0.02473]
[1752946418182,2.16302705,117950.0,117940.0,0.02473]
[1752946419083,1.83681687,117950.0,117940.0,0.02473]
[1752946419285,2.16302705,117950.0,117940.0,0.02473]
[1752946419478,2.16302705,117950.0,117940.0,0.01753]
[1752946421083,2.17946458,117950.0,117940.0,0.01753]
[1752946422484,2.17946458,117950.0,117940.0,0.02473]
[1752946423285,2.17946458,117950.0,117940.0,0.04717]
[1752946423884,3.35246458,117950.0,117940.0,0.04717]
[1752946424182,3.36763517,117950.0,117940.0,0.04717]
[1752946429186,2.78559517,117950.0,117940.0,0.04717]
[1752946429387,3.36843517,117950.0,117940.0,0.04717]
[1752946430582,3.36843517,117950.0,117940.0,0.04517]
[1752946430786,3.36943517,117950.0,117940.0,0.04417]
[1752946430989,3.37043517,117950.0,117940.0,0.04417]
[1752946432488,3.37043517,117950.0,117940.0,0.02173]
[1752946434189,3.43113493,117950.0,117940.0,0.02173]
[1752946434391,3.355282,117950.0,117940.0,0.02173]
[1752946434887,3.02907182,117950.0,117940.0,0.02173]
[1752946435082,3.355282,117950.0,117940.0,0.02173]
[1752946435284,3.355282,117950.0,117940.0,0.01453]
[1752946435484,0.3188082,117930.0,117920.0,0.11586]
[1752946435683,1.45371082,117930.0,117920.0,0.11586]
[1752946435886,1.61681591,117930.0,117920.0,0.11586]
[1752946436687,1.62515144,117930.0,117920.0,0.11586]
[1752946437687,1.62515144,117930.0,117920.0,0.11886]
[1752946439188,1.46204635,117930.0,117920.0,0.11886]
[1752946439889,1.45371082,117930.0,117920.0,0.11886]
[1752946440590,1.08127082,117930.0,117920.0,0.11886]
[1752946440993,0.91816573,117930.0,117920.0,0.11886]
[1752946441295,1.08127082,117930.0,117920.0,0.11886]
[1752946442391,0.91816573,117930.0,117920.0,0.11886]
[1752946442596,0.85915082,117930.0,117920.0,0.11886]
[1752946442795,1.44379082,117930.0,117920.0,0.11886]
[1752946442994,1.08299082,117930.0,117920.0,0.11886]
[1752946443697,0.92084573,117930.0,117920.0,0.11886]
[1752946443893,0.98265082,117930.0,117920.0,0.64686278]
[1752946444093,1.07671082,117930.0,117920.0,0.64686278]
[1752946444301,1.07671082,117930.0,117920.0,0.31422509]
[1752946444600,1.07671082,117930.0,117920.0,0.3206526]
[1752946444797,1.07671082,117930.0,117920.0,0.48375769]
[1752946446296,1.07671082,117930.0,117920.0,0.3206526]
[1752946446501,1.07671082,117930.0,117920.0,0.15112]
[1752946446697,1.07671082,117930.0,117920.0,0.48375769]
[1752946447103,0.92084573,117930.0,117920.0,0.48375769]
[1752946447402,1.08395082,117930.0,117920.0,0.48375769]
[1752946448903,1.08395082,117930.0,117920.0,0.3206526]
[1752946449203,1.08395082,117930.0,117920.0,0.48375769]
[1752946449500,1.08411082,117930.0,117920.0,0.48375769]
[1752946449704,1.08411082,117930.0,117920.0,0.3206526]
[1752946449901,1.08395082,117930.0,117920.0,0.48375769]
[1752946450102,1.08395082,117930.0,117920.0,0.50262444]
[1752946451700,1.08395082,117930.0,117920.0,0.33951935]
[1752946452401,0.49835082,117930.0,117920.0,0.33951935]
[1752946452603,1.08395082,117930.0,117920.0,0.33951935]
[1752946454704,0.92084573,117930.0,117920.0,0.33951935]
[1752946454903,1.08395082,117930.0,117920.0,0.33951935]
[1752946455103,1.08395082,117930.0,117920.0,0.50262444]
[1752946455406,0.49835082,117930.0,117920.0,0.50262444]
[1752946455706,1.08371082,117930.0,117920.0,0.33951935]
[1752946455908,1.08371082,117930.0,117920.0,0.50262444]
[1752946457006,1.08371082,117930.0,117920.0,0.33951935]
[1752946457506,0.49835082,117930.0,117920.0,0.33951935]
[1752946457697,1.08383082,117930.0,117920.0,0.33951935]
[1752946460399,1.08335082,117930.0,117920.0,0.30725935]
[1752946460805,0.92024573,117930.0,117920.0,0.47036444]
[1752946461006,1.08335082,117930.0,117920.0,0.47036444]
[1752946461505,1.08335082,117930.0,117920.0,0.30725935]
[1752946462100,1.08335082,117930.0,117920.0,0.30725925]
[1752946462305,1.09446082,117930.0,117920.0,0.47036434]
[1752946462707,1.45526082,117930.0,117920.0,0.47036434]
[1752946463010,1.45526082,117930.0,117920.0,0.30725925]
[1752946463511,1.45526082,117930.0,117920.0,0.30625925]
[1752946463913,1.09446082,117930.0,117920.0,0.30625925]
[1752946464112,1.45526082,117930.0,117920.0,0.30625925]
[1752946464413,1.09446082,117930.0,117920.0,0.30625925]
[1752946464613,1.09446082,117930.0,117920.0,0.30525925]
[1752946465717,1.09446082,117930.0,117920.0,0.13572675]
[1752946466511,1.09446082,117930.0,117920.0,0.30525935]
[1752946467007,0.93135573,117930.0,117920.0,0.13572675]
[1752946467313,1.09446082,117930.0,117920.0,0.30525935]
[1752946468008,0.93135573,117930.0,117920.0,0.30525935]
[1752946468307,1.09446082,117930.0,117920.0,0.30525935]
[1752946469708,0.93135573,117930.0,117920.0,0.30525935]
[1752946470014,1.09446082,117930.0,117920.0,0.30525935]
[1752946470615,1.09446082,117930.0,117920.0,0.13572675]
[1752946471716,0.93135573,117930.0,117920.0,0.30525935]
[1752946471915,1.09446082,117930.0,117920.0,0.30525935]
[1752946474215,1.15516058,117930.0,117920.0,0.30525935]
[1752946475716,0.57016058,117930.0,117920.0,0.30525935]
[1752946476018,1.15476058,117930.0,117920.0,0.30525935]
[1752946476720,0.99165549,117930.0,117920.0,0.30525935]
[1752946477220,0.98054549,117930.0,117920.0,0.30525935]
[1752946477421,1.14365058,117930.0,117920.0,0.46836444]
[1752946477923,1.14365058,117930.0,117920.0,0.82916444]
[1752946478617,1.14365058,117930.0,117920.0,0.66605935]
[1752946478922,1.14365058,117930.0,117920.0,0.82916444]
[1752946479127,1.14365058,117930.0,117920.0,0.46836444]
[1752946479422,1.14365058,117930.0,117920.0,0.30525935]
[1752946479922,1.50445058,117930.0,117920.0,0.30525935]
[1752946480625,1.51540058,117930.0,117920.0,0.30525935]
[1752946482226,1.51540058,117930.0,117920.0,0.46836444]
[1752946482627,0.93080058,117930.0,117920.0,0.46836444]
[1752946482826,1.51548058,117930.0,117920.0,0.46836444]
[1752946484227,1.45478082,117930.0,117920.0,0.46836444]
[1752946484427,1.45478082,117930.0,117920.0,0.30525935]
[1752946485229,0.87010082,117930.0,117920.0,0.30525935]
[1752946485527,1.45470082,117930.0,117920.0,0.30525935]
[1752946487431,0.87010082,117930.0,117920.0,0.30525935]
[1752946487731,1.45454082,117930.0,117920.0,0.30525935]
[1752946488733,1.45454082,117930.0,117920.0,0.26927935]
[1752946490336,0.87010082,117930.0,117920.0,0.26927935]
[1752946490532,1.45430082,117930.0,117920.0,0.26927935]
[1752946492235,0.87010082,117930.0,117920.0,0.26927935]
[1752946492435,1.45430082,117930.0,117920.0,0.26927935]
[1752946493841,1.29119573,117930.0,117920.0,0.26927935]
[1752946494043,1.45430082,117930.0,117920.0,0.26927935]
[1752946496345,1.45449204,117930.0,117920.0,0.26927935]
[1752946499350,1.29138695,117930.0,117920.0,0.26927935]
[1752946499539,1.45449204,117930.0,117920.0,0.26927935]
[1752946500046,1.61759713,117930.0,117920.0,0.26927935]
[1752946500242,1.45449204,117930.0,117920.0,0.26927935]
[1752946500949,1.45449204,117930.0,117920.0,0.04181675]
[1752946501248,1.45449204,117930.0,117920.0,0.03444675]
[1752946502249,1.45449204,117930.0,117920.0,0.20397935]
[1752946503053,1.45449204,117930.0,117920.0,0.03444675]
[1752946504653,1.45449204,117930.0,117920.0,0.01986675]
[1752946504654,1.61759713,117930.0,117920.0,0.01986675]
[1752946511447,1.69531713,117930.0,117920.0,0.00594481]
[1752946512657,1.63461737,117930.0,117920.0,0.00594481]
[1752946513257,1.30840719,117930.0,117920.0,0.00594481]
[1752946513460,1.69531713,117930.0,117920.0,0.00594481]
[1752946514352,1.7104703,117930.0,117920.0,0.00594481]
[1752946515156,1.7712108,117930.0,117920.0,0.00594481]
[1752946515348,1.69547787,117930.0,117920.0,0.00594481]
[1752946517260,1.11115787,117930.0,117920.0,0.00594481]
[1752946517459,1.69527787,117930.0,117920.0,0.00594481]
[1752946517957,1.63453737,117930.0,117920.0,0.00594481]
[1752946518860,1.7103903,117930.0,117920.0,0.00594481]
[1752946519056,1.3495903,117930.0,117920.0,0.00594481]
[1752946519255,1.7103903,117930.0,117920.0,0.00594481]
[1752946520356,1.1262703,117930.0,117920.0,0.00594481]
[1752946520560,1.7100703,117930.0,117920.0,0.00594481]
[1752946521760,1.77080756,117930.0,117920.0,0.00594481]
[1752946521961,1.69495463,117930.0,117920.0,0.00594481]
[1752946522358,1.33415463,117930.0,117920.0,0.00594481]
[1752946522563,1.69495463,117930.0,117920.0,0.00594481]
[1752946522863,1.33415463,117930.0,117920.0,0.00594481]
[1752946523059,1.63421737,117930.0,117920.0,0.00594481]
[1752946523255,1.63421737,117930.0,117920.0,0.001]
[1752946523866,1.69495519,117930.0,117920.0,0.001]
[1752946524466,1.63421737,117930.0,117920.0,0.001]
[1752946524965,1.30800719,117930.0,117920.0,0.001]
[1752946525167,1.63421737,117930.0,117920.0,0.001]
[1752946525966,1.30800719,117930.0,117920.0,0.001]
[1752946526366,1.63421737,117930.0,117920.0,0.001]
[1752946526667,1.63521737,117930.0,117920.0,0.001]
[1752946528067,1.30900719,117930.0,117920.0,0.001]
[1752946528269,0.3156225,117920.0,117910.0,0.31817227]
[1752946528566,0.66861143,117920.0,117910.0,0.31817227]
[1752946529356,0.66861143,117920.0,117910.0,0.31917227]
[1752946529664,1.07939634,117920.0,117910.0,0.55064736]
[1752946529969,1.08954634,117920.0,117910.0,0.38754227]
[1752946530162,1.08954634,117920.0,117910.0,0.55064736]
[1752946530361,1.25265143,117920.0,117910.0,0.55064736]
[1752946531258,1.25265143,117920.0,117910.0,0.51396736]
[1752946532968,0.92644125,117920.0,117910.0,0.51396736]
[1752946533170,1.25265143,117920.0,117910.0,0.51396736]
[1752946533564,1.25265143,117920.0,117910.0,0.35086227]
[1752946533770,1.25265143,117920.0,117910.0,0.51396736]
[1752946535071,1.23602268,117920.0,117910.0,0.51396736]
[1752946535272,1.25267075,117920.0,117910.0,0.51396736]
[1752946535473,1.25323075,117920.0,117910.0,0.51396736]
[1752946535971,1.25323075,117920.0,117910.0,0.35086227]
[1752946537172,1.25323075,117920.0,117910.0,0.51396736]
[1752946538075,1.25323075,117920.0,117910.0,0.35086227]
[1752946540678,1.25267075,117920.0,117910.0,0.35086227]
[1752946540879,1.25267739,117920.0,117910.0,0.35086227]
[1752946542479,1.25255739,117920.0,117910.0,0.35086227]
[1752946543079,0.92634721,117920.0,117910.0,0.35086227]
[1752946543281,1.25255739,117920.0,117910.0,0.35086227]
[1752946544579,1.25255739,117920.0,117910.0,0.51396736]
[1752946544776,1.0894523,117920.0,117910.0,0.51396736]
[1752946545282,0.92634721,117920.0,117910.0,0.51396736]
[1752946545577,1.25223739,117920.0,117910.0,0.51396736]
[1752946546182,1.25223739,117920.0,117910.0,0.87476736]
[1752946546381,1.25223739,117920.0,117910.0,0.51396736]
[1752946546576,1.25223339,117920.0,117910.0,0.51396736]
[1752946547279,1.0891283,117920.0,117910.0,0.51396736]
[1752946547478,0.92606321,117920.0,117910.0,0.35086227]
[1752946547676,1.0891683,117920.0,117910.0,0.38754227]
[1752946548178,1.0891683,117920.0,117910.0,0.55064736]
[1752946549584,0.5055283,117920.0,117910.0,0.55064736]
[1752946549784,1.0891283,117920.0,117910.0,0.55064736]
[1752946550080,0.5055283,117920.0,117910.0,0.55064736]
[1752946550284,1.0891283,117920.0,117910.0,0.55064736]
[1752946550584,1.0890483,117920.0,117910.0,0.55064736]
[1752946551084,1.0890483,117920.0,117910.0,0.91144736]
[1752946551385,1.0890083,117920.0,117910.0,0.91144736]
[1752946551978,0.92590321,117920.0,117910.0,0.74834227]
[1752946552179,1.0890083,117920.0,117910.0,0.91144736]
[1752946559095,1.0890083,117920.0,117910.0,0.74834227]
[1752946559295,1.0890083,117920.0,117910.0,0.91144736]
[1752946559594,0.34242321,117920.0,117910.0,0.91144736]
[1752946559893,1.0882883,117920.0,117910.0,0.91144736]
[1752946560093,0.92518321,117920.0,117910.0,0.91144736]
[1752946560288,0.73885071,117920.0,117910.0,0.93703736]
[1752946576811,0.73885071,117920.0,117910.0,0.77393227]
[1752946577011,0.73885071,117920.0,117910.0,0.93703736]
[1752946577411,0.9019558,117920.0,117910.0,0.93703736]
[1752946577814,0.9019558,117920.0,117910.0,1.29783736]
[1752946578312,0.9087258,117920.0,117910.0,1.29783736]
[1752946579003,0.9087258,117920.0,117910.0,0.93703736]
[1752946580208,1.0782584,117920.0,117910.0,0.77393227]
[1752946580509,0.9087258,117920.0,117910.0,0.93703736]
[1752946581312,1.0782584,117920.0,117910.0,0.91144736]
[1752946583811,1.25052349,117920.0,117910.0,0.64887227]
[1752946584010,1.61132349,117920.0,117910.0,0.28807227]
[1752946585116,1.25052349,117920.0,117910.0,0.28807227]
[1752946589818,1.61132349,117920.0,117910.0,0.28807227]
[1752946590112,1.25052349,117920.0,117910.0,0.28807227]
[1752946592611,1.61132349,117920.0,117910.0,0.24568557]
[1752946592816,1.25052349,117920.0,117910.0,0.24568557]
[1752946593821,1.61132349,117920.0,117910.0,0.23165557]
[1752946594412,1.61232349,117920.0,117910.0,0.23165557]
[1752946594714,1.61332349,117920.0,117910.0,0.23065557]
[1752946596823,1.61332349,117920.0,117910.0,0.18826887]
[1752946597022,1.61332349,117920.0,117910.0,0.01872197]
[1752946600027,1.61332349,117920.0,117910.0,0.18826887]
[1752946604728,1.61332349,117920.0,117910.0,0.01872197]
[1752946607533,0.322157,117910.0,117900.0,0.01322]
[1752946607734,1.04291006,117910.0,117900.0,0.1827813]
[1752946607935,0.2313113,117900.0,117890.0,0.30391351]
[1752946608126,1.24691219,117900.0,117890.0,0.31713351]
[1752946609031,1.24691219,117900.0,117890.0,0.67793351]
[1752946609827,1.24691219,117900.0,117890.0,0.67893351]
[1752946610936,1.24691219,117900.0,117890.0,0.67993351]
[1752946611132,1.24670471,117900.0,117890.0,0.67993351]
[1752946611328,1.24670471,117900.0,117890.0,0.31913351]
[1752946612239,1.24670471,117900.0,117890.0,0.29573351]
[1752946615032,1.24670471,117900.0,117890.0,0.65653351]
[1752946615834,1.24670471,117900.0,117890.0,0.29573351]
[1752946616136,1.24670471,117900.0,117890.0,0.67767351]
[1752946616637,0.92049453,117900.0,117890.0,0.67767351]
[1752946616840,1.08359962,117900.0,117890.0,0.8407786]
[1752946617143,1.08359962,117900.0,117890.0,0.8707086]
[1752946617325,1.08359962,117900.0,117890.0,0.74141351]
[1752946618937,1.08359962,117900.0,117890.0,0.38061351]
[1752946619138,1.08359962,117900.0,117890.0,0.74141351]
[1752946619337,1.08359962,117900.0,117890.0,0.9045186]
[1752946619540,1.24670471,117900.0,117890.0,0.9045186]
[1752946621345,1.24670471,117900.0,117890.0,0.74141351]
[1752946621534,1.24670471,117900.0,117890.0,0.9045186]
[1752946622841,1.08359962,117900.0,117890.0,0.9045186]
[1752946623941,1.08359962,117900.0,117890.0,0.74141351]
[1752946624134,1.24670471,117900.0,117890.0,0.5437186]
[1752946624335,1.24670471,117900.0,117890.0,0.5099086]
[1752946624736,1.24670471,117900.0,117890.0,0.34680351]
[1752946626340,1.24670471,117900.0,117890.0,0.06252371]
[1752946626341,1.60750471,117900.0,117890.0,0.06252371]
[1752946626641,1.60750471,117900.0,117890.0,0.21095941]
[1752946627846,1.60750471,117900.0,117890.0,0.19070941]
[1752946630450,1.60750471,117900.0,117890.0,0.20381941]
[1752946631453,1.24670471,117900.0,117890.0,0.20381941]
[1752946631955,1.60750471,117900.0,117890.0,0.20381941]
[1752946632454,1.24670471,117900.0,117890.0,0.20381941]
[1752946633149,1.60750471,117900.0,117890.0,0.20381941]
[1752946633354,1.24670471,117900.0,117890.0,0.20381941]
[1752946633949,1.60750471,117900.0,117890.0,0.20381941]
[1752946634855,1.24670471,117900.0,117890.0,0.20381941]
[1752946635349,1.60750471,117900.0,117890.0,0.20381941]
[1752946635950,1.24670471,117900.0,117890.0,0.20381941]
[1752946638260,1.60750471,117900.0,117890.0,0.20381941]
[1752946639864,1.24670471,117900.0,117890.0,0.20381941]
[1752946640166,1.60750471,117900.0,117890.0,0.20381941]
[1752946642156,1.60750471,117900.0,117890.0,0.002]
[1752946642766,1.60746471,117900.0,117890.0,0.002]
[1752946643154,1.7705698,117900.0,117890.0,0.002]
[1752946644560,1.85539103,117900.0,117890.0,0.002]
[1752946645161,1.69228594,117900.0,117890.0,0.002]
[1752946645563,1.85539103,117900.0,117890.0,0.002]
[1752946646166,1.69228594,117900.0,117890.0,0.002]
[1752946648568,1.36607576,117900.0,117890.0,0.002]
[1752946648772,1.60742471,117900.0,117890.0,0.1715756]
[1752946648967,1.60742471,117900.0,117890.0,0.1849956]
[1752946649175,1.60742471,117900.0,117890.0,0.1913856]
[1752946649670,1.60742471,117900.0,117890.0,0.02181]
[1752946649878,1.60742471,117900.0,117890.0,0.01542]
[1752946650065,1.60742471,117900.0,117890.0,0.002]
[1752946650471,1.02562471,117900.0,117890.0,0.002]
[1752946650671,1.60742471,117900.0,117890.0,0.002]
[1752946651874,1.60742471,117900.0,117890.0,0.1715756]
[1752946653175,1.28121453,117900.0,117890.0,0.1715756]
[1752946653373,1.60742471,117900.0,117890.0,0.1715756]
[1752946653874,1.60742471,117900.0,117890.0,0.002]
[1752946654266,1.66816253,117900.0,117890.0,0.002]
[1752946654871,1.66816253,117900.0,117890.0,0.1715756]
[1752946655876,1.66816253,117900.0,117890.0,0.002]
[1752946656175,1.66816253,117900.0,117890.0,0.1715756]
[1752946656870,1.66816253,117900.0,117890.0,0.1849956]
[1752946657071,1.66816253,117900.0,117890.0,0.01542]
[1752946657272,1.66816253,117900.0,117890.0,0.002]
[1752946661978,1.60742471,117900.0,117890.0,0.002]
[1752946663080,1.02562471,117900.0,117890.0,0.002]
[1752946663269,1.60742471,117900.0,117890.0,0.002]
[1752946664280,1.66812603,117900.0,117890.0,0.002]
[1752946665081,1.60742471,117900.0,117890.0,0.002]
[1752946669288,1.66812603,117900.0,117890.0,0.002]
[1752946669884,1.08632603,117900.0,117890.0,0.002]
[1752946670185,1.66812603,117900.0,117890.0,0.002]
[1752946672892,1.30732603,117900.0,117890.0,0.002]
[1752946673091,1.66812603,117900.0,117890.0,0.002]
[1752946678291,1.66812603,117900.0,117890.0,0.1715756]
[1752946679192,1.66812603,117900.0,117890.0,0.002]
[1752946679493,1.66812603,117900.0,117890.0,0.1715755]
[1752946680195,1.66812603,117900.0,117890.0,0.002]
[1752946682497,1.66812603,117900.0,117890.0,0.1715755]
[1752946682698,1.66808603,117900.0,117890.0,0.1715755]